Cogmind - Beta 15 @@@ ROGUE MODE // 2025.10.07 @ 22:48:56 Player: DietSnapple Result: Destroyed by D-53 Grenadier with Mini Grenade Launcher Performance ------------- Evolutions (2) 1000 Regions Visited (6) 1200 Robots Destroyed (82) 410 Value Destroyed (2276) 2276 Prototype IDs (30) 600 Alien Tech Used (0) 0 Bonus (517) 517 TOTAL SCORE: 6003 Bonus ------- High Alert Combat Kills 69 Follower Combat Kills 148 Aligned with FarCom 300 Cogmind --------- Core Integrity 0/550 Matter 300/300 Energy 33/100 System Corruption 1% Temperature Cool (0) Movement Core (50) Location -8/Storage Parts ------- > --- POWER (1) -------- (None) > --- PROPULSION (4) --- (None) > --- UTILITY (4) ------ Improved Terrain Scan Processor Hacking Suite Hacking Suite > --- WEAPON (2) ------- Longsword +1 > --- INVENTORY (5) ---- Medium Armor Plating Heavy Armor Plating Hacking Suite System Restoration Module Peak State ------------ > --- POWER ------------ Heavy Ion Engine > --- PROPULSION ------- Armored Treads Medium Treads Medium Treads Medium Treads > --- UTILITY ---------- Large Storage Unit Signal Interpreter Hardened Medium Armor Plating Hacking Suite > --- WEAPON ----------- Improved Assault Rifle Longsword +1 > --- INVENTORY -------- Light Nuclear Core Medium Treads Improved Flight Unit Advanced Weight Redist. System Improved Terrain Scan Processor Medium Armor Plating Heavy Armor Plating Hardened Medium Armor Plating Hacking Suite Hacking Suite Hacking Suite System Shield System Restoration Module Missile Launcher [Rating: 41] Favorites ----------- Power Deuterium Engine Engine Deuterium Engine Power Core Light Nuclear Core Propulsion Light Treads Treads Light Treads Flight Unit Improved Flight Unit Utility Signal Interpreter Storage Large Storage Unit Processor Signal Interpreter Hackware Hacking Suite Protection Hardened Medium Armor Plating Weapon Medium Laser Energy Gun Medium Laser Ballistic Gun Improved Assault Rifle Launcher Missile Launcher Slashing Weapon Longsword +1 Build | -11 -10 -10 -10 -9 -8 -8 ------- Run | Yrd Mat Min Exi Min Mat Sto Slots Evolved 4 | . . . . . 4 . Power . | . . . . . . . Propulsion 2 | . . . . . 2 . Utility 2 | . . . . . 2 . Weapon . | . . . . . . . Parts Attached 43 | 6 4 5 1 2 19 6 Power 6 | 1 1 1 . . 2 1 Engine 5 | 1 1 1 . . 1 1 Core 1 | . . . . . 1 . Reactor . | . . . . . . . Propulsion 15 | 2 . 2 . 1 9 1 Treads 13 | 2 . 2 . 1 8 . Leg . | . . . . . . . Wheel . | . . . . . . . Hover . | . . . . . . . Flight 2 | . . . . . 1 1 Utility 13 | 1 2 . . . 6 4 Device . | . . . . . . . Storage 2 | 1 1 . . . . . Processor 3 | . 1 . . . 1 1 Hackware 4 | . . . . . 1 3 Protection 4 | . . . . . 4 . Artifact . | . . . . . . . Weapon 9 | 2 1 2 1 1 2 . Energy Gun 2 | 1 1 . . . . . Energy Cannon . | . . . . . . . Ballistic Gun 2 | 1 . . . . 1 . Ballistic Cannon . | . . . . . . . Launcher 4 | . . 2 . 1 1 . Special Weapon . | . . . . . . . Impact Weapon . | . . . . . . . Slashing Weapon 1 | . . . 1 . . . Piercing Weapon . | . . . . . . . Special Melee Weapon . | . . . . . . . Unidentified Prototypes 3 | . . . . . 2 1 Parts Lost 12 | . . 1 . . 1 10 Power . | . . . . . . . Propulsion 6 | . . 1 . . . 5 Utility 4 | . . . . . . 4 Weapon 2 | . . . . . 1 1 Highest Loss Streak 10 | . . 1 . . 1 10 To Critical Strikes . | . . . . . . . Average Backups 12 | 2 8 11 12 13 14 13 Power 1 | . 1 1 1 1 1 . Propulsion 2 | 1 2 2 3 2 1 2 Utility 4 | . 1 3 3 2 6 9 Weapon 3 | . 2 4 5 6 4 . Tool/Special . | . . . . . . . Unused Backups 22 | . . . . 4 10 8 Power 3 | . . . . 1 1 1 Propulsion 5 | . . . . 2 2 1 Utility 11 | . . . . 1 5 5 Weapon 3 | . . . . . 2 1 Tool/Special . | . . . . . . . Average Slot Usage (%) 98 | . 95 99 100 99 99 98 Engine 9 | . 14 14 14 14 5 8 Core 1 | . . . . . 3 . Treads 32 | . 28 27 28 28 35 35 Storage 11 | . 14 14 14 14 9 8 Processor 10 | . 10 14 14 14 9 8 Hackware 4 | . . . . . 8 9 Protection 4 | . . . . . 8 8 Energy Gun 8 | . 19 19 21 13 1 . Ballistic Gun 4 | . 8 . . . 4 8 Launcher 3 | . . 8 . . 3 . Slashing Weapon 6 | . . . 6 14 8 9 Peak Build Rating 41 | 6 8 10 17 19 40 41 Average Rating 23 | 4 7 9 13 17 33 39 On Entrance 14 | . 6 8 10 17 19 40 Naked Turns . | . . . . . . . Heaviest Build 46 | 14 29 35 34 38 46 42 Greatest Support 104 | 40 40 40 40 43 104 104 Greatest Overweight (x) 1 | . 1 . . . . 1 Average Overweight (x) . | . . . . . . . Largest Inventory Capacity 15 | 8 15 15 15 15 15 15 Average Capacity 14 | 6 10 15 15 15 15 14 Most Carried 15 | 4 10 14 13 15 15 15 Average Carried 12 | 2 8 11 12 13 14 14 Final Capacity 15 | 8 15 15 15 15 15 5 Final Carried 15 | 4 10 12 13 14 15 5 Class Distribution -------------------- 86% | Mutant 9% | Scavenger-Mutant 4% | Commander-Mutant Dominant Class ---------------- Mutant | -10/Materials Mutant | -10/Mines Mutant | -10/Exiles Mutant | -9/Mines Mutant | -8/Materials Mutant | -8/Storage Resources | -11 -10 -10 -10 -9 -8 -8 ----------- Run | Yrd Mat Min Exi Min Mat Sto Matter Collected 1266 | 254 108 234 . 118 507 45 Remotely . | . . . . . . . Salvage Created 3148 | . 251 201 . 117 1943 636 Parts 183 | . 18 15 . 5 103 42 Haulers Intercepted 8 | . . . . . 4 4 Recyclers Shooed 5 | . . . . . 5 . Parts Field Recycled . | . . . . . . . Retrieved Matter . | . . . . . . . Parts Self-Destructed . | . . . . . . . Prevented . | . . . . . . . Kills | -11 -10 -10 -10 -9 -8 -8 ------- Run | Yrd Mat Min Exi Min Mat Sto Combat Hostiles Destroyed 54 | . 7 4 . 3 33 7 Melee 36 | . . . . . 29 7 Guns 9 | . 7 2 . . . . AOE 9 | . . 2 . 3 4 . Classes Destroyed 14 | . 3 4 . . 6 1 Worker 4 | . . . . . 2 2 Builder 3 | . . 1 . . 2 . Tunneler 2 | . . 1 . 1 . . Hauler 8 | . . . . . 4 4 Recycler 6 | . . 1 . 1 4 . Operator 4 | . 1 . . . 2 1 Watcher 1 | . . . . . 1 . Swarmer 12 | . 3 . . 3 6 . Grunt 22 | . 4 2 . . 14 2 Duelist 1 | . . . . . . 1 Sentry 10 | . . . . . 6 4 Demolisher 2 | . . 2 . . . . Specialist 2 | . . . . . 2 . Hunter 5 | . . . . . 5 . Best Kill Streak 5 | . 3 4 . 4 5 5 Combat Bots Only 5 | . 3 2 . 3 4 5 Max Kills in Single Turn 2 | . 2 2 . 2 2 1 Gunslinging 1 | . 1 . . . . . Exploded 2 | . . 1 . 2 2 . Melee 1 | . . . . . 1 1 Uniques/NPCs Destroyed . | . . . . . . . Combat | -11 -10 -10 -10 -9 -8 -8 -------- Run | Yrd Mat Min Exi Min Mat Sto Hostile Shots Fired 277 | . 26 14 . 14 141 82 Missed 82 | . 7 4 . 4 46 21 Hits 195 | . 19 10 . 10 95 61 Melee 3 | . . . . . . 3 Projectile 192 | . 19 10 . 10 95 58 AOE 29 | . . 4 . . . 25 Critical Strikes 3 | . . . . . 2 1 Damage Taken 3736 | . 238 231 . 81 1474 1712 Core 715 | . 97 23 . 28 112 455 Absorbed by Shields . | . . . . . . . Regen/Repaired (Parts) 553 | . . . . . 424 129 Core Remaining (%) 70 | 100 . . . 40 . . Volleys Fired 54 | . 17 13 1 4 19 . Largest 2 | . 2 2 1 1 2 . Hottest 100 | . 100 100 50 50 100 . Shots Fired 91 | . 34 29 1 5 22 . Gun 63 | . 34 18 1 2 8 . Cannon . | . . . . . . . Launcher 28 | . . 11 . 3 14 . Special . | . . . . . . . Kinetic 13 | . 10 . . . 3 . Thermal 50 | . 24 18 1 2 5 . Explosive 28 | . . 11 . 3 14 . Electromagnetic . | . . . . . . . Robot Hit Streak 9 | . 9 5 . 6 1 . Robot Miss Streak 5 | . 1 2 . . 5 . Penetration Max . | . . . . . . . Secondary Targets 2 | . 2 . . . . . Max Gunslinging Chain 1 | . 1 . . . . . Shots Hit Robots 166 | . 26 12 . 6 95 27 Core Hits 102 | . 14 19 . 5 52 12 Critical Kills . | . . . . . . . Critical Parts Destroyed . | . . . . . . . Critical Strikes 21 | . 2 2 . 1 11 5 Burn 4 | . 2 2 . . . . Sever 17 | . . . . 1 11 5 Melee Attacks 143 | . . . . 5 109 29 Impact . | . . . . . . . Slashing 143 | . . . . 5 109 29 Piercing . | . . . . . . . Sneak Attacks 36 | . . . . 4 21 11 Combat Hostiles 4 | . . . . . 4 . Follow-up Attacks . | . . . . . . . Damage Inflicted 8939 | . 336 348 . 579 6000 1676 Guns 525 | . 332 139 . 13 41 . Cannons . | . . . . . . . Explosions 1071 | . . 195 . 156 720 . Melee 7317 | . . . . 410 5231 1676 Ramming 26 | . 4 14 . . 8 . Kinetic 110 | . 94 . . . 16 . Thermal 415 | . 238 139 . 13 25 . Explosive 1071 | . . 195 . 156 720 . Electromagnetic . | . . . . . . . Impact . | . . . . . . . Slashing 7317 | . . . . 410 5231 1676 Piercing . | . . . . . . . Highest Corruption 2 | . 2 2 2 2 . 1 Average Corruption 1 | . 2 2 2 2 . 1 Corruption Purged . | . . . . . . . Corruption Blocked . | . . . . . . . Effects 57 | . 16 23 7 10 . 1 Message Errors 11 | . 5 5 1 . . . Matter Fused 15 | . 4 6 2 3 . . Heat Flow Errors 8 | . 3 1 2 2 . . Energy Discharges 3 | . . 2 . 1 . . Data Loss (minor) 9 | . 1 3 1 3 . 1 Data Loss (major) 3 | . 1 1 1 . . . Misfires 4 | . . 3 . 1 . . Alerts 4 | . 2 2 . . . . Overload Shots . | . . . . . . . Overflow Damage 1003 | . . . . 139 683 181 Projectiles . | . . . . . . . Explosions 34 | . . . . . 34 . Melee 969 | . . . . 139 649 181 Knockbacks . | . . . . . . . Impact . | . . . . . . . Kinetic . | . . . . . . . Secondary . | . . . . . . . Self-Inflicted Damage 45 | . . . . . 45 . Shots 2 | . . . . . 2 . Rammed 3 | . 1 1 . . 1 . Targets Rammed 3 | . 1 1 . . 1 . Kicked . | . . . . . . . Crushed . | . . . . . . . Highest Temperature 311 | . 252 311 278 256 239 11 Average Temperature 86 | . 63 127 113 93 68 11 Received Heat Transfer 834 | . 114 36 . . 396 288 Siege Activations . | . . . . . . . Martial Activations . | . . . . . . . Shielding Activations . | . . . . . . . Robots Disrupted . | . . . . . . . Combat Hostiles . | . . . . . . . Robots Corrupted . | . . . . . . . Combat Hostiles . | . . . . . . . Parts Fried . | . . . . . . . Impact Corruptions . | . . . . . . . Robots Melted . | . . . . . . . Combat Hostiles . | . . . . . . . Parts Melted 3 | . 2 1 . . . . Heat Transferred 1517 | . 851 555 . 37 74 . Parts Sabotaged . | . . . . . . . Parts Stolen . | . . . . . . . Parts Stripped . | . . . . . . . Power Chain Reactions . | . . . . . . . Alert | -11 -10 -10 -10 -9 -8 -8 ------- Run | Yrd Mat Min Exi Min Mat Sto Maximum Alert Level 2 | . . . . . 2 1 Low Security (%) 67 | 100 100 100 . 100 43 26 Level 1 26 | . . . . . 41 73 Level 2 6 | . . . . . 14 . Level 3 . | . . . . . . . Level 4 . | . . . . . . . Level 5 . | . . . . . . . High Security . | . . . . . . . Max Security . | . . . . . . . Peak Influence 589 | . 70 73 . 112 589 334 Initial 248 | . . . . . . 248 Average 124 | . 8 5 . 18 216 230 Influence Increases 2224 | . 188 144 . 147 1238 507 Destroy 0b10 Robot/C 1180 | . 140 80 . 60 660 240 Destroy 0b10 Robot/NC 145 | . 5 15 . 10 75 40 Destroy Leader 350 | . 30 20 . 10 180 110 Allied During Kill 79 | . . . . . . 79 Successful Hack 75 | . 13 . . . 39 23 Disable Machine 15 | . . . . 15 . . Destroy Structure 125 | . . 29 . 22 74 . Partial Spotted 15 | . . . . . . 15 Lose Combat Pursuer 240 | . . . . 30 210 . Influence Decreases 2219 | . 188 144 . 147 649 1091 Entered New Map 341 | . . . . . . 341 Time Decay 1530 | . 188 134 . 147 639 422 Lost Part 108 | . . 10 . . 10 88 Lost Ally 240 | . . . . . . 240 Squads Dispatched 15 | . 1 1 . . 10 3 Investigation 6 | . . 1 . . 5 . Extermination . | . . . . . . . Reinforcement 6 | . 1 . . . 4 1 Assault 3 | . . . . . 1 2 Garrison . | . . . . . . . Intercept . | . . . . . . . Searches Triggered . | . . . . . . . Construction Impeded 1 | . . . . . 1 . Haulers Reinforced . | . . . . . . . Active Scanning Responses . | . . . . . . . Cargo Convoy Interrupts . | . . . . . . . Stealth | -11 -10 -10 -10 -9 -8 -8 --------- Run | Yrd Mat Min Exi Min Mat Sto Distress Signals 11 | . 1 1 . . 4 5 Communications Jammed . | . . . . . . . Distress Signals . | . . . . . . . Times Spotted 110 | . 11 5 . 5 60 29 Peak Tracking Total 10 | . 3 2 . 4 4 10 Tactical Retreats 14 | . . . . 2 12 . Traps | -11 -10 -10 -10 -9 -8 -8 ------- Run | Yrd Mat Min Exi Min Mat Sto Traps Triggered 4 | . 2 . . . 2 . Indirectly . | . . . . . . . Trap Hack Attempts . | . . . . . . . Triggered . | . . . . . . . Disarmed . | . . . . . . . Reprogrammed . | . . . . . . . Reused . | . . . . . . . Traps Extracted . | . . . . . . . Installed . | . . . . . . . Triggered . | . . . . . . . Machines | -11 -10 -10 -10 -9 -8 -8 ---------- Run | Yrd Mat Min Exi Min Mat Sto Machines Disabled 1 | . . . . 1 . . Max in Single Turn 1 | . . . . 1 . . Garrison Access 1 | . . . . . 1 . Machines Repaired . | . . . . . . . Machines Dismantled . | . . . . . . . Machines Sabotaged . | . . . . . . . Overloaded Fab Kills . | . . . . . . . Hacking | -11 -10 -10 -10 -9 -8 -8 --------- Run | Yrd Mat Min Exi Min Mat Sto Machines Accessed 22 | . 4 . 1 . 13 4 Terminals 15 | . 4 . . . 8 3 Fabricators . | . . . . . . . Repair Stations 2 | . . . . . 1 1 Recycling Units 2 | . . . . . 2 . Scanalyzers 1 | . . . . . 1 . Garrison Access 1 | . . . . . 1 . Total Hacks 67 | . 14 . 1 . 38 14 Successful 40 | . 4 . 1 . 27 8 Failed 26 | . 10 . . . 10 6 Catastrophic 2 | . 1 . . . 1 . Database Lockouts 1 | . . . . . 1 . Manual 41 | . 12 . 1 . 21 7 Terminals 48 | . 14 . . . 23 11 Fabricators . | . . . . . . . Repair Stations 9 | . . . . . 6 3 Recycling Units 3 | . . . . . 3 . Scanalyzers 4 | . . . . . 4 . Garrison Access 2 | . . . . . 2 . Terminal Hacks 14 | . 1 . 1 . 8 4 Record 1 | . . . . . 1 . Prototype ID Bank 2 | . . . . . 1 1 Branch Access Points 1 | . . . . . 1 . Terminal Index 1 | . . . . . 1 . Locate Traps 2 | . . . . . . 2 Security Status 1 | . . . . . 1 . Recall Investigation 1 | . . . . . 1 . Hauler Manifests 2 | . 1 . . . 1 . Registered Components 2 | . . . . . 1 1 Proto ID Catalog 1 | . . . 1 . . . Fabricator Hacks . | . . . . . . . Repair Station Hacks 8 | . . . . . 6 2 Scan Component 4 | . . . . . 3 1 Repair 4 | . . . . . 3 1 Recycling Unit Hacks 3 | . . . . . 3 . Report Inventory 2 | . . . . . 2 . Retrieve Components 1 | . . . . . 1 . Scanalyzer 4 | . . . . . 4 . Insert Component 2 | . . . . . 2 . Analyze 2 | . . . . . 2 . Garrison Access Hacks 1 | . . . . . 1 . Seal Access 1 | . . . . . 1 . Unauthorized Hacks 10 | . 3 . . . 5 2 Terminals 10 | . 3 . . . 5 2 Track 1 | . . . . . 1 . Assimilate 1 | . 1 . . . . . Botnet 7 | . 2 . . . 3 2 Operators 1 | . . . . . 1 . Fabricators . | . . . . . . . Repair Stations . | . . . . . . . Recycling Units . | . . . . . . . Scanalyzers . | . . . . . . . Garrison Access . | . . . . . . . Data Cores Recovered . | . . . . . . . Used . | . . . . . . . Hacking Detections 18 | . 4 . . . 12 2 Full Trace Events 5 | . . . . . 5 . Feedback Events . | . . . . . . . Feedback Blocked . | . . . . . . . Robot Schematics Acquired . | . . . . . . . Robots Built . | . . . . . . . Authchips . | . . . . . . . Time . | . . . . . . . Total Robot Build Rating . | . . . . . . . Part Schematics Acquired 2 | . . . . . 2 . Parts Built . | . . . . . . . Authchips . | . . . . . . . Time . | . . . . . . . Total Part Build Rating . | . . . . . . . Parts Repaired 4 | . . . . . 3 1 Time 146 | . . . . . 108 38 Parts Recycled . | . . . . . . . Recycled Matter . | . . . . . . . Retrieved Matter . | . . . . . . . Retrieved Components 2 | . . . . . 2 . Parts Scanalyzed 2 | . . . . . 2 . Part Schematics Acquired 2 | . . . . . 2 . Parts Damaged . | . . . . . . . Bothacking | -11 -10 -10 -10 -9 -8 -8 ------------ Run | Yrd Mat Min Exi Min Mat Sto Used RIF Installer . | . . . . . . . Robots Hacked . | . . . . . . . Non-combat . | . . . . . . . Combat . | . . . . . . . Robot Hacks Applied . | . . . . . . . Relay Couplers Released . | . . . . . . . Fabnet Peak Effective % . | . . . . . . . Robots Rewired . | . . . . . . . Allies Hacked . | . . . . . . . Hacks Repelled . | . . . . . . . Allies | -11 -10 -10 -10 -9 -8 -8 -------- Run | Yrd Mat Min Exi Min Mat Sto Total Allies 13 | . . 1 . . . 12 Largest Group 10 | . . 1 . . . 10 Highest-Rated Group 174 | . . 31 . . . 174 Highest-Rated Ally 31 | . . 31 . . . 31 Total Orders 1 | . . . . . . 1 FOLLOW 1 | . . . . . . 1 Ally Attacks 61 | . . . . . . 61 Total Damage 679 | . . . . . . 679 Kills 6 | . . . . . . 6 Allies Corrupted . | . . . . . . . Allies Melted . | . . . . . . . Intel | -11 -10 -10 -10 -9 -8 -8 ------- Run | Yrd Mat Min Exi Min Mat Sto Active Infowar (turns) . | . . . . . . . Robot Analysis Total . | . . . . . . . Derelict Logs Recovered 3 | . . 1 . 2 . . Drone Launches . | . . . . . . . Drone Recoveries . | . . . . . . . Exploration | -11 -10 -10 -10 -9 -8 -8 ------------- Run | Yrd Mat Min Exi Min Mat Sto Turns Passed 10444 | 167 1634 1838 379 883 4496 1047 Spaces Moved 4987 | 103 972 858 235 531 1791 497 Core 16 | 9 . . . . . 7 Treads 4971 | 94 972 858 235 531 1791 490 Legs . | . . . . . . . Wheels . | . . . . . . . Hover . | . . . . . . . Flight . | . . . . . . . Fastest Speed 50 | 50 160 160 160 160 155 50 Average Speed 159 | 150 160 160 160 160 158 160 Slowest Speed 240 | 160 240 160 160 160 162 240 Overloaded Moves . | . . . . . . . Propulsion Burnouts . | . . . . . . . Robots Hopped . | . . . . . . . Potential Cave-ins . | . . . . . . . Cave-ins Triggered . | . . . . . . . Exploration Rate (%) 66 | 4 91 97 59 80 89 45 Regions Visited 6 Branch Regions 4 Pre-discovered Areas 2 | . . 1 . 1 . . Known Exits Taken 5 | . 1 1 1 1 1 . Unknown Exits Taken 1 | 1 . . . . . . Scrap Searched 3 | . . 1 . 2 . . Spaces Dug 14 | . . . . . 14 . Terrain Destroyed 156 | . . 33 . 26 97 . Melee 14 | . . . . . 14 . Projectile . | . . . . . . . AOE 142 | . . 33 . 26 83 . Terrain Rammed . | . . . . . . . Walls Destroyed . | . . . . . . . Machines Disabled . | . . . . . . . Actions | -11 -10 -10 -10 -9 -8 -8 --------- Run | Yrd Mat Min Exi Min Mat Sto Total 7275 | 112 1014 1299 237 558 3339 716 Wait 1923 | . 8 412 . 2 1324 177 Move 4981 | 102 971 857 234 530 1790 497 Hop . | . . . . . . . Pick Up 46 | 4 8 3 1 6 22 2 Fast Attach 20 | 6 3 . . 1 7 3 Attach 24 | . 1 5 . . 15 3 Detach 14 | . . 4 . 1 9 . Swap 21 | . 2 2 1 2 13 1 Drop 46 | . 3 2 . 7 30 4 Fire 54 | . 17 13 1 4 19 . Melee 143 | . . . . 5 109 29 Ram . | . . . . . . . Kick . | . . . . . . . Crush 3 | . 1 1 . . 1 . Escape Stasis . | . . . . . . . Rewire . | . . . . . . . Trap . | . . . . . . . Miscellaneous . | . . . . . . . Route ------- -11/Scrapyard -10/Materials (discovered 4 exits: *Mat x3 / *Min) -10/Mines (discovered 4 exits: *Mat x2 / *Exi / [*Sub]) -10/Exiles (discovered 2 exits: *Min x2) -9/Mines -8/Materials (discovered 3 exits: *Fac x2 / *Sto) -8/Storage History --------- Turn | Location | Event 14 | -11/Scrapyard | Discovered new exit (range 14) 168 | -11/Scrapyard | Entered Materials 169 | -10/Materials | Met a group of wandering Federalists 302 | -10/Materials | Build established: Mutant 583 | -10/Materials | Discovered new exit (range 9) 630 | -10/Materials | Identified exit to Mines 732 | -10/Materials | Discovered new exit (range 8) 1215 | -10/Materials | Discovered new exit (range 7) 1362 | -10/Materials | Discovered new exit (range 12) 1802 | -10/Materials | Entered Mines 1813 | -10/Mines | Assembled infested the area 2333 | -10/Mines | Met a Derelict shopkeep closing up shop 2542 | -10/Mines | Joined a pair of Derelicts in attacking an 0b10 outpost 2954 | -10/Mines | Discovered new exit (range 16) 2966 | -10/Mines | Received a Rocket Launcher from a helpful Derelict 2981 | -10/Mines | Identified exit to Materials 3016 | -10/Mines | Received a Mining Laser from a helpful Derelict 3277 | -10/Mines | Discovered new exit (range 15) 3293 | -10/Mines | Discovered exit to Materials (range 14) 3629 | -10/Mines | Deemed a non-threat by the Exiles lab entrance 3631 | -10/Mines | Discovered new exit (range 5) 3637 | -10/Mines | Identified exit to Exiles 3640 | -10/Mines | Entered Exiles 3661 | -10/Exiles | Discovered new exit (range 15) 3680 | -10/Exiles | Met 8R-AWN 3714 | -10/Exiles | Met EX-HEX 3759 | -10/Exiles | Met EX-BIN 3781 | -10/Exiles | Aligned with FarCom system 3783 | -10/Exiles | Given EX-Vault access code 3826 | -10/Exiles | Opened EX-Vault 3839 | -10/Exiles | Found Longsword +1 3874 | -10/Exiles | Warned to stay clear of 0b10 Research branches 3928 | -10/Exiles | Met EX-DEC 3981 | -10/Exiles | Discovered new exit (range 14) 4000 | -10/Exiles | Identified exit to Mines 4019 | -10/Exiles | Left Exiles lab with Longsword +1 4019 | -10/Exiles | Entered Mines 4196 | -9/Mines | Core integrity fell below 50% 4432 | -9/Mines | Learned location of Zion (-6) 4515 | -9/Mines | Found DCF Scrap (15 items) 4598 | -9/Mines | Learned Materials emergency access door positions 4825 | -9/Mines | A weapon hastily lodged in a ceiling crevice suddenly fell to the ground 4855 | -9/Mines | Discovered new exit (range 11) 4873 | -9/Mines | Identified exit to Materials 4902 | -9/Mines | Entered Materials 4902 | -8/Materials | Evolved 4 slots: Propulsion x2, Utility x2 5594 | -8/Materials | Discovered new exit (range 9) 5713 | -8/Materials | Identified exit to Storage 6227 | -8/Materials | Build established: Scavenger-Mutant 6811 | -8/Materials | Discovered new exit (range 16) 6930 | -8/Materials | Identified exit to Factory 7194 | -8/Materials | Build established: Mutant 7246 | -8/Materials | Repaired Adv. Treads 7286 | -8/Materials | Repaired Arm. Treads 7319 | -8/Materials | Repaired Imp. Treads 7607 | -8/Materials | Discovered exit to Factory (range 9) 8012 | -8/Materials | Central database locked down 9302 | -8/Materials | First assault squad dispatched 9398 | -8/Materials | Entered Storage 9506 | -8/Storage | Repaired Hrd. Medium Armor Plating 9974 | -8/Storage | Assisted by bots powering up and referring to "LRC-V3" 10276 | -8/Storage | Build established: Commander-Mutant 10346 | -8/Storage | Met a pair of Derelict thieves 10436 | -8/Storage | Lost 9 allies 10439 | -8/Storage | Core integrity fell below 50% 10445 | -8/Storage | Core integrity fell below 20% 10445 | -8/Storage | Destroyed by D-53 Grenadier with Mini Grenade Launcher Last Messages --------------- 10439_ The unstable cave ceiling collapses. 10439_ K-01 Serf collects debris. 10439_ M-28 Smith repairs M-28 Smith. 10440_ System Shield destroyed. 10441_ U-05 Engineer lays Concrete. 10441_ Acquired Hacking Suite. 10441_ K-01 Serf collects debris. 10442_ The unstable cave ceiling collapses. 10442_ U-05 Engineer lays Concrete. 10442_ Acquired 6 matter. 10443_ U-05 Engineer lays Concrete. 10443_ K-01 Serf collects debris. 10443_ Sneak attack on K-01 Serf. 10443_ K-01 Serf destroyed. 10444_ Extracted 29 matter. 10444_ M-28 Smith repairs D-53 Grenadier Lgt. Deuterium Engine. 10444_ U-05 Engineer lays Concrete. 10445_ The unstable cave ceiling collapses. 10445_ U-05 Engineer lays Concrete. 10445_ K-01 Serf collects debris. Map ----- +----------------------------------------------------+ | ?????????????????????????????????????????????????? | | ?????????????????????????????????????????????????? | | ?????????????????????????????????????????????????? | | ?????????????????????????????????????##########??? | | ?????????????????????????????????????# #??? | | ?????????????????????????????????????# """" #??? | | ?????????????????????????????????????# "??" #??? | | ?????????????????????????????????????# "??" #??? | | ?????????????????????????????????????# "??" #??? | | ?????????????????????????????????????# "??" #??? | | ?????????????????????????????????????# """" #??? | | ????????????????????????????##+#?????# ! % #?## | | ????????????????????????????# ??#### % ! #?#" | | ????????????????????????+#### ?? ######+####?#" | | ????????????????????????? # ??# #???# % #####" | | ??????????????????????????# #??# ##### + ! | | ??????????????????????????# #?## ^ ^^ # %!! | | ??????????????????????????# #?#T ^ # % | | ???????????????????????###+##+#### """ + | | /#+?????????????????????# + """ # | | ?????????######?????## [[ # """ ###### | | #?????#### #?##### [[ # #????? | | #?????? ### # #????? | | #??????? T # ##+###+##### #????? | | #????????# % # ## # T ## #????? | | ###########+### = @ % + # #????? | | # ! % !* * #### !]] ## #????? | | # % % % ###] !]] ## #????? | | # """"" """"" ! T## !] ## +????? | | + """"" """"" # d ## ## #????? | | # """"" """"" # ###" "#### #????? | | # d ######?#"T"#??# #????? | | #######"T"# # # #######?#"""#??# #????? | | #?????#"""### gm # # **#?#####??# #????? | | ############## dg# "= * #???????? #????? | | % *g%# [% *#???????? #????? | | " *%=% * "[ #???????? #????? | | %"%" !%=! # # ** #????????####?????? | | ########+######## # # * *#?????????????????? | | #??# #?## # ######?????????????????? | | #??# """" #??# ####??????????????????????? | | #??# ""???? #??# "##????????????????????????? | | #??# ""???? #??# "%#?????????????????????????? | | #??# "????" #??# "#?????????????????????????? | | #??# "??"" #??# #?????????????????????????? | | ^ ???# """" #??# ?????????????????????????? | | ???# #??# ???????????????!?????????? | | ???#/#########??# ?????????????????????????? | | ???# #??????????######????????????????????????? | | ???# #####????????????????????????????????????? | +----------------------------------------------------+ Best States ------------- Heat Dissipation 31 Energy Generation 14 Energy Capacity 280 Matter Stores 300 Matter Capacity 300 Sight Range 16 Terrain Scan Density 110 Armor Coverage 225 Evasion (%) 40 Recoil Reduction 4 Offensive Hacking 10 Defensive Hacking 10 Item Schematics ----------------- Hacking Suite | -8/Materials | Scanalyzed Imp. Flight Unit | -8/Materials | Scanalyzed Robot Schematics ------------------ None Fabricated ------------ Nothing Repaired ---------- Adv. Treads | 12% | -8/Materials Arm. Treads | 41% | -8/Materials Imp. Treads | 34% | -8/Materials Hrd. Medium Armor Plating | 46% | -8/Storage Alien Tech Used ----------------- None Achievements -------------- The More The Merrier Challenges ------------ None Game ------ Seed HeatSpliceCoupler Manual? 0 Play Time 01:04:43 Cumulative 20.4 hours Start 2025.10.07 @ 19:37:49 End 2025.10.07 @ 22:48:56 Sessions 3 Manual Loads 0 Difficulty Rogue Special Mode None Game No. 59 Rogue 52 Adventurer 7 Explorer 0 Win Type - Total 0 Types 0/0/0/0/0/0/0/0/0/0 Lore% 5 Gallery% 20 Achievement% 19 Wizard Run 0 Options --------- Layout 0 ASCII 0 Keyboard 1 Movement Vi Keybinds 0 Fullscreen 1 Font 18/SmallcapsGlow Map View 112x50 Zoom Use 0% Tactical HUD 1 Map Filters NONE Filters NONE Steam 1 RUN: 5f05a724-72d7-4cb4-bbec-b9284917cdce